bitfinex/quotes_SOLUSD_20251001
["timestamp","ask_amount","ask_price","bid_price","bid_amount"]
[1759285224211,0.68,210.48,210.47,37.04]
[1759285224619,5.43104522,210.48,210.47,37.04]
[1759285225120,5.43104522,210.48,210.47,70.4]
[1759285226201,6.94315851,210.48,210.47,70.4]
[1759285228136,18.82077158,210.48,210.36,13.59559401]
[1759285228304,1.51211329,210.46,210.37,0.63]
[1759285228507,0.68,210.45,210.37,0.63]
[1759285228904,1.51211329,210.43,210.35,0.63]
[1759285229089,0.68,210.42,210.34,14.22559401]
[1759285229294,0.68,210.41,210.35,33.36]
[1759285229721,4.75285171,210.4,210.35,33.36]
[1759285229910,4.75285171,210.4,210.36,37.04]
[1759285230106,5.43285171,210.4,210.37,33.36]
[1759285230307,4.75285171,210.4,210.37,33.36]
[1759285230507,4.75285171,210.4,210.37,33.99]
[1759285230705,4.75285171,210.4,210.37,33.36]
[1759285230916,16.63498098,210.4,210.37,33.36]
[1759285231101,17.31498098,210.4,210.37,33.36]
[1759285231308,16.63498098,210.4,210.37,33.36]
[1759285232308,11.88212927,210.4,210.37,33.36]
[1759285233819,0.68,210.4,210.37,33.36]
[1759285234129,0.68,210.42,210.37,33.36]
[1759285234421,0.68,210.41,210.37,33.36]
[1759285234623,17.3126094,210.43,210.37,33.36]
[1759285234792,17.3126094,210.43,210.37,33.99]
[1759285234997,0.68,210.42,210.37,33.99]
[1759285235499,0.68,210.47,210.38,14.50991715]
[1759285235701,11.87930624,210.45,210.39,33.36]
[1759285235903,11.87930624,210.45,210.4,0.63]
[1759285236105,11.87930624,210.45,210.41,33.99]
[1759285236720,11.87930624,210.45,210.41,33.36]
[1759285236721,12.55930624,210.45,210.41,33.36]
[1759285236942,11.87930624,210.45,210.41,33.36]
[1759285237242,12.55930624,210.45,210.41,33.36]
[1759285237434,11.87930624,210.45,210.41,33.36]
[1759285237637,11.87930624,210.45,210.41,33.99]
[1759285238139,12.55930624,210.45,210.41,33.99]
[1759285238841,12.55930624,210.45,210.41,33.36]
[1759285239553,12.55930624,210.45,210.42,37.06]
[1759285240524,17.31102873,210.45,210.42,37.06]
[1759285240722,17.31102873,210.45,210.43,33.36]
[1759285241849,0.68,210.44,210.43,33.36]
[1759285242348,0.68,210.46,210.43,33.36]
[1759285242523,0.68,210.45,210.43,33.36]
[1759285244153,4.75194829,210.44,210.43,33.36]
[1759285244355,4.75194829,210.44,210.43,33.99]
[1759285244651,4.75194829,210.44,210.43,33.36]
[1759285246428,16.63048485,210.46,210.43,33.36]
[1759285246744,17.31048485,210.46,210.43,33.36]
[1759285247845,0.68,210.45,210.43,33.36]
[1759285248850,0.68,210.44,210.43,33.36]
[1759285249230,11.87898813,210.46,210.43,33.36]
[1759285249438,11.87898813,210.46,210.43,33.99]
[1759285249638,11.87898813,210.46,210.43,33.36]
[1759285249952,17.31048485,210.46,210.43,33.36]
[1759285252836,16.63048485,210.46,210.43,33.36]
[1759285253042,11.87898813,210.46,210.43,33.36]
[1759285253541,0.66,210.45,210.43,33.36]
[1759285254138,0.66,210.44,210.43,33.36]
[1759285255263,5.41194829,210.44,210.43,33.36]
[1759285258362,4.75194829,210.44,210.43,33.36]
[1759285258937,5.41194829,210.44,210.42,37.06]
[1759285259137,21.46,210.43,210.42,37.06]
[1759285259338,21.46,210.43,210.42,70.42]
[1759285260164,26.21217411,210.43,210.42,70.42]
[1759285262061,4.75217411,210.43,210.42,70.42]
[1759285262271,4.75172249,210.45,210.42,71.05]
[1759285262472,4.75172249,210.45,210.43,0.63]
[1759285262780,4.75172249,210.45,210.44,33.36]
[1759285264262,16.62954487,210.47,210.44,33.36]
[1759285265770,12.53827391,210.47,210.44,33.36]
[1759285267154,17.28954487,210.47,210.44,33.36]
[1759285267884,20.8,210.44,210.42,37.06]
[1759285268053,20.8,210.44,210.43,33.36]
[1759285268758,21.46,210.44,210.43,33.36]
[1759285269279,26.21194829,210.44,210.43,33.36]
[1759285269652,28.5770702,210.44,210.42,37.06]
[1759285269979,3.02512191,210.43,210.42,37.06]
[1759285270579,0.66,210.43,210.42,37.06]
[1759285270874,0.66,210.43,210.42,70.42]
[1759285271272,5.41217411,210.43,210.42,70.42]
[1759285272269,4.75217411,210.43,210.42,70.42]
[1759285273660,5.41217411,210.43,210.42,70.42]
[1759285275792,19.65773131,210.43,210.38,37.04]
[1759285275975,2.36512191,210.41,210.34,0.63]
[1759285276176,0.66,210.4,210.34,79.73]
[1759285277079,0.66,210.4,210.35,33.36]
[1759285277275,16.63577165,210.39,210.35,33.36]
[1759285277471,16.63577165,210.39,210.35,33.99]
[1759285279686,11.88269404,210.39,210.35,33.36]
[1759285279895,11.88269404,210.39,210.36,37.69]
[1759285280095,12.54269404,210.39,210.37,33.36]
[1759285280593,11.88269404,210.39,210.37,33.36]
[1759285281198,16.63577165,210.39,210.37,33.36]
[1759285281775,17.29577165,210.39,210.37,33.36]
[1759285283992,16.63577165,210.39,210.37,33.36]
[1759285284201,17.29577165,210.39,210.37,33.36]
[1759285286797,16.63577165,210.39,210.37,33.36]
[1759285287176,0.66,210.38,210.37,33.36]
[1759285288100,0.66,210.38,210.36,37.06]
[1759285288290,0.66,210.37,210.36,37.06]
[1759285288980,7.7786514,210.37,210.36,37.06]
[1759285289178,19.66247513,210.37,210.36,70.42]
[1759285289600,19.66247513,210.37,210.31,0.63]
[1759285289792,19.66247513,210.37,210.32,37.06]
[1759285289996,0.66,210.36,210.32,37.06]
[1759285290187,0.66,210.35,210.32,37.06]
[1759285290593,42.7701226,210.37,210.32,37.06]
[1759285290594,0.66,210.36,210.32,37.06]
[1759285290800,0.66,210.36,210.33,33.36]
[1759285290998,4.75398145,210.35,210.33,33.36]
[1759285293185,16.63814412,210.36,210.33,33.36]
[1759285293396,20.8,210.34,210.33,33.36]
[1759285293581,21.46,210.34,210.33,33.36]
[1759285294189,23.82512191,210.34,210.33,33.36]
[1759285295096,26.21420747,210.34,210.33,33.36]
[1759285295801,25.55420747,210.34,210.33,33.36]
[1759285296206,26.21420747,210.34,210.33,33.36]
[1759285297417,25.55420747,210.34,210.33,33.36]
[1759285298001,26.21420747,210.34,210.33,33.36]
[1759285299006,25.55420747,210.34,210.33,33.36]
[1759285299210,20.7524568,210.35,210.33,33.99]
[1759285299389,20.7524568,210.35,210.33,33.36]
[1759285299390,25.50645915,210.35,210.33,33.36]
[1759285299591,26.16645915,210.35,210.33,33.36]
[1759285300203,4.75400235,210.35,210.33,33.36]
[1759285301312,20.8,210.35,210.34,0.63]
[1759285301493,20.8,210.34,210.33,33.36]
[1759285302995,21.46,210.34,210.33,33.36]
[1759285303612,25.55420747,210.34,210.33,33.36]
[1759285307694,25.55420747,210.34,210.33,33.99]
[1759285307951,20.8,210.36,210.33,33.99]
[1759285308127,20.8,210.35,210.34,0.63]
[1759285308416,20.8,210.36,210.34,33.36]
[1759285308799,0.66,210.38,210.34,33.36]
[1759285309214,20.8,210.36,210.35,33.36]
[1759285310802,25.55375546,210.36,210.35,33.36]
[1759285312226,4.75344006,210.38,210.35,33.36]
[1759285312432,25.55344006,210.38,210.36,0.63]
[1759285312605,25.55344006,210.38,210.37,33.36]
[1759285312807,26.21344006,210.38,210.37,33.36]
[1759285314333,5.41344006,210.38,210.37,33.36]
[1759285315019,17.34669892,210.38,210.33,0.63]
[1759285315335,17.34669892,210.38,210.34,33.36]
[1759285316828,16.63669892,210.38,210.35,0.63]
[1759285317027,16.63669892,210.38,210.36,33.36]
[1759285318323,11.88325886,210.38,210.36,33.36]
[1759285318835,12.59325886,210.38,210.36,33.36]
[1759285319927,17.3465624,210.38,210.36,33.36]
[1759285320120,0.71,210.37,210.32,37.69]
[1759285320320,16.6365624,210.38,210.33,33.99]
[1759285320638,4.75330354,210.38,210.33,33.99]
[1759285320939,4.75330354,210.38,210.34,0.63]
[1759285321134,4.75330354,210.38,210.35,0.63]
[1759285321341,4.75330354,210.38,210.36,33.36]
[1759285321726,4.75330354,210.38,210.37,0.63]
[1759285322038,16.63181903,210.44,210.37,0.63]
[1759285323224,16.63181903,210.44,210.37,5.38349695]
[1759285323428,16.63181903,210.44,210.38,0.63]
[1759285323616,16.63181903,210.44,210.39,33.36]
[1759285323816,16.63181903,210.44,210.4,0.63]
[1759285324016,11.87987074,210.44,210.4,0.63]
[1759285324443,11.87987074,210.44,210.39,33.36]
[1759285324643,12.58987074,210.44,210.4,0.63]
[1759285324843,0.71,210.43,210.35,0.28432314]
[1759285325032,0.71,210.43,210.36,33.36]
[1759285325239,0.71,210.42,210.36,33.36]
[1759285325722,0.71,210.41,210.36,33.36]
[1759285326064,16.63577165,210.39,210.34,37.06]
[1759285326222,16.63577165,210.39,210.37,33.34]
[1759285326425,0.71,210.38,210.37,33.34]
[1759285328222,5.46330354,210.38,210.37,33.34]
[1759285328622,5.46330354,210.38,210.34,37.06]
[1759285328623,18.86101675,210.38,210.34,37.06]
[1759285328825,1.51445435,210.36,210.35,33.34]
[1759285329025,2.22445435,210.36,210.35,33.34]
[1759285329340,0.71,210.36,210.35,33.34]
[1759285330154,5.46375546,210.36,210.35,33.34]
[1759285331522,6.97820981,210.36,210.35,33.34]
[1759285331924,18.86259847,210.36,210.25,37.06]
[1759285332123,1.51445435,210.32,210.26,37.06]
[1759285332350,20.8,210.33,210.27,0.63]
[1759285332648,0.71,210.34,210.27,0.63]
[1759285333242,0.71,210.34,210.28,33.34]
[1759285333832,16.64130847,210.32,210.28,33.34]
[1759285334151,17.35130847,210.32,210.28,33.34]
[1759285334728,0.71,210.31,210.28,33.34]
[1759285334934,0.71,210.3,210.28,33.34]
[1759285335146,0.71,210.29,210.28,33.34]
[1759285336050,4.75533786,210.29,210.28,33.34]
[1759285337983,4.75533786,210.29,210.28,33.36]
[1759285337984,0.71,210.29,210.28,33.36]
[1759285339158,17.35368252,210.29,210.23,0.2]
[1759285339562,41.13037185,210.29,210.23,0.2]
[1759285339946,41.13037185,210.29,210.24,37.08]
[1759285340149,0.67,210.28,210.24,37.08]
[1759285340348,0.67,210.27,210.25,33.36]
[1759285340737,0.67,210.26,210.25,33.36]
[1759285341546,0.67,210.26,210.24,37.08]
[1759285341547,6.94047071,210.26,210.24,37.08]
[1759285341837,2.18445435,210.25,210.24,37.08]
[1759285342060,2.18445435,210.25,210.23,0.2]
[1759285342260,22.31445435,210.24,210.23,1e-08]
[1759285342462,20.8,210.23,210.22,1e-08]
[1759285342649,22.98445435,210.23,210.22,1e-08]
[1759285342971,22.98445435,210.23,210.22,33.36000001]
[1759285343552,27.07114939,210.23,210.22,33.36000001]
[1759285343753,27.77114939,210.23,210.22,33.36000001]
[1759285344366,4.75669504,210.23,210.22,33.99000001]
[1759285344748,4.75669504,210.23,210.22,33.36000001]
[1759285346065,4.75646879,210.24,210.22,33.36000001]
[1759285348577,4.75624256,210.25,210.22,33.36000001]
[1759285349565,4.75624256,210.25,210.23,0.63]
[1759285349758,4.75624256,210.25,210.24,0.63]
[1759285349956,11.8888254,210.29,210.24,37.71]
[1759285350154,11.8888254,210.29,210.25,0.63]
[1759285350354,11.8888254,210.29,210.24,37.08]
[1759285350355,11.8888254,210.29,210.26,33.99]
[1759285351356,11.8888254,210.29,210.26,33.36]
[1759285352074,12.5888254,210.29,210.26,33.36]
[1759285352382,11.8888254,210.29,210.26,33.36]
[1759285354057,12.5888254,210.29,210.26,33.36]
[1759285354455,0.7,210.28,210.26,33.36]
[1759285354673,0.7,210.27,210.26,33.36]
[1759285359570,5.45579017,210.27,210.26,33.36]
[1759285369394,20.8,210.25,210.24,37.08]
[1759285369573,23.01445435,210.25,210.24,70.44]
[1759285371994,26.25624256,210.25,210.24,70.44]
[1759285372194,27.77069691,210.25,210.24,70.44]
[1759285372695,39.66130333,210.25,210.22,1e-08]
[1759285372898,1.51445435,210.24,210.22,1e-08]
[1759285373277,0.7,210.23,210.22,1e-08]
[1759285373687,2.21445435,210.23,210.2,0.2]
[1759285373992,4.75714761,210.21,210.2,0.2]
[1759285374772,4.75714761,210.21,210.2,0.83]
[1759285374967,4.75714761,210.21,210.2,34.19]
[1759285376200,37.44605726,210.26,210.2,34.19]
[1759285376370,37.44605726,210.26,210.21,0.63]
[1759285376571,37.44605726,210.26,210.22,0.63]
[1759285376770,37.44605726,210.26,210.23,33.36]
[1759285377595,4.75601636,210.26,210.23,33.36]
[1759285377796,4.75601636,210.26,210.24,0.63]
[1759285378182,4.75601636,210.26,210.23,33.36]
[1759285378183,4.75601636,210.26,210.25,0.63]
[1759285378782,11.88838747,210.29,210.25,0.63]
[1759285379500,11.88838747,210.29,210.26,0.63]
[1759285379700,11.88838747,210.29,210.27,33.36]
[1759285379889,16.64372533,210.29,210.28,37.08]
[1759285382818,11.88838747,210.29,210.28,37.08]
[1759285384907,4.75488564,210.31,210.28,37.71]
[1759285385113,4.75488564,210.31,210.28,37.08]
[1759285385298,4.75488564,210.31,210.29,0.63]
[1759285385595,4.75488564,210.31,210.3,33.36]
[1759285386384,5.45488564,210.31,210.3,33.36]
[1759285386615,0.7,210.33,210.3,33.36]
[1759285387985,11.88586316,210.34,210.3,33.36]
[1759285388188,23.16841657,210.31,210.28,37.08]
[1759285388388,0.7,210.3,210.29,33.36]
[1759285388587,3.06841657,210.3,210.29,33.36]
[1759285388786,7.82352831,210.3,210.29,33.36]
[1759285391911,7.82352831,210.3,210.28,37.08]
[1759285392095,0.7,210.29,210.28,37.08]
[1759285393203,4.75533786,210.29,210.28,70.44]
[1759285393531,5.45533786,210.29,210.28,70.44]
[1759285394845,4.75533786,210.29,210.28,70.44]
[1759285395344,5.45533786,210.29,210.28,70.44]
[1759285396518,4.75511174,210.3,210.28,70.44]
[1759285397041,4.75511174,210.3,210.28,71.07]
[1759285397749,4.75511174,210.3,210.28,70.44]
[1759285397957,4.75511174,210.3,210.29,0.63]
[1759285398241,4.75511174,210.3,210.28,70.44]
[1759285398807,0.67,210.29,210.28,37.08]
[1759285399142,3.03841657,210.29,210.21,0.63]
[1759285399306,2.36841657,210.28,210.21,0.63]
[1759285399821,0.67,210.27,210.22,37.08]
[1759285400031,0.67,210.26,210.22,37.08]
[1759285400226,16.64684898,210.25,210.22,37.08]
[1759285400424,16.64684898,210.25,210.23,33.34]
[1759285403136,4.75624256,210.25,210.23,33.34]
[1759285403328,4.75624256,210.25,210.24,0.63]
[1759285403527,4.75624256,210.25,210.23,33.34]
[1759285403727,4.75624256,210.25,210.23,33.97]
[1759285405241,11.89025496,210.26,210.23,33.97]
[1759285405427,11.89025496,210.26,210.23,33.34]
[1759285407246,17.31627132,210.26,210.23,33.34]
[1759285407616,16.64627132,210.26,210.23,33.34]
[1759285408446,11.89025496,210.26,210.23,33.34]
[1759285409340,0.67,210.25,210.23,33.34]
[1759285410543,11.89025496,210.26,210.23,33.34]
[1759285410844,12.56025496,210.26,210.23,33.34]
[1759285411433,11.89025496,210.26,210.23,33.97]
[1759285411632,11.89025496,210.26,210.23,33.34]
[1759285412546,16.64627132,210.26,210.24,0.63]
[1759285412841,4.75601636,210.26,210.25,33.34]
[1759285413232,4.75601636,210.26,210.25,33.97]
[1759285414042,16.64447402,210.28,210.25,33.34]
[1759285414845,17.31447402,210.28,210.25,33.34]
[1759285415543,11.88891002,210.28,210.25,33.34]
[1759285416138,12.55891002,210.28,210.26,37.08]
[1759285416338,12.55891002,210.28,210.27,33.34]
[1759285417646,17.31447402,210.28,210.27,33.34]
[1759285427676,16.64447402,210.28,210.27,33.34]
[1759285428108,11.88891002,210.28,210.27,33.34]
[1759285428443,12.55891002,210.28,210.27,33.34]
[1759285429061,17.31447402,210.28,210.26,37.08]
[1759285429367,17.31447402,210.28,210.27,33.34]
[1759285431963,5.018738,210.27,210.26,37.08]
[1759285433280,9.77452817,210.27,210.26,70.42]
[1759285435870,9.77452817,210.27,210.26,71.05]
[1759285436467,9.77452817,210.27,210.26,70.42]
[1759285437282,9.77452817,210.27,210.26,71.05]
[1759285437283,5.018738,210.27,210.26,71.05]
[1759285437479,5.018738,210.27,210.26,70.42]
[1759285437865,5.018738,210.27,210.26,71.05]
[1759285438270,9.77452817,210.27,210.26,71.05]
[1759285441053,9.77452817,210.27,210.26,70.42]
[1759285442969,9.77452817,210.27,210.26,71.05]
[1759285443578,5.018738,210.27,210.26,71.05]
[1759285450980,5.018738,210.27,210.26,37.71]
[1759285451187,5.018738,210.27,210.26,71.03]
[1759285451690,5.018738,210.27,210.26,37.71]
[1759285451864,5.018738,210.27,210.26,71.03]
[1759285452889,5.018738,210.27,210.26,150.13]
[1759285453876,5.018738,210.27,210.26,149.5]
[1759285455291,10.47452817,210.27,210.26,116.18]
[1759285455495,10.47452817,210.27,210.26,149.5]
[1759285456977,10.47452817,210.27,210.26,37.08]
[1759285457179,10.47452817,210.27,210.26,70.4]
[1759285457873,9.77452817,210.27,210.26,70.4]
[1759285458896,10.46452817,210.27,210.26,70.4]
[1759285461086,9.77452817,210.27,210.26,70.4]
[1759285461907,5.018738,210.27,210.26,70.4]
[1759285462112,5.018738,210.27,210.26,71.03]
[1759285462582,5.018738,210.27,210.26,70.4]
[1759285462784,5.018738,210.27,210.26,71.03]
[1759285463804,5.698738,210.27,210.26,70.4]
[1759285465005,10.45452817,210.27,210.26,70.4]
[1759285470611,9.77452817,210.27,210.26,70.4]
[1759285470988,10.45452817,210.27,210.26,70.4]
[1759285476714,5.018738,210.27,210.26,70.4]
[1759285477718,9.77452817,210.27,210.26,70.4]
[1759285478307,5.018738,210.27,210.26,70.4]
[1759285478516,9.77452817,210.27,210.26,70.4]
[1759285480649,5.018738,210.27,210.26,70.4]
[1759285484213,9.77452817,210.27,210.26,70.4]
[1759285485539,9.77452817,210.27,210.26,149.5]
[1759285486933,10.45452817,210.27,210.26,149.48]
[1759285487307,10.45452817,210.27,210.26,116.18]
[1759285487510,10.45452817,210.27,210.26,149.48]
[1759285490342,10.45452817,210.27,210.26,70.38]
[1759285490625,23.85980048,210.27,210.2,0.2]
[1759285490828,1.51579688,210.26,210.2,0.2]
[1759285491018,0.68,210.25,210.2,0.2]
[1759285491734,1.51579688,210.23,210.2,0.2]
[1759285492038,1.51579688,210.23,210.21,33.3]
[1759285492039,0.68,210.22,210.21,33.3]
[1759285492411,5.43692132,210.22,210.21,33.3]
[1759285492811,6.9527182,210.22,210.2,0.2]
[1759285494044,6.9527182,210.22,210.21,33.3]
[1759285494916,20.8,210.19,210.16,1e-08]
[1759285495250,1.51579688,210.17,210.16,1e-08]
[1759285495735,2.23579688,210.17,210.16,1e-08]
[1759285496238,6.99384988,210.17,210.16,33.30000001]
[1759285497148,4.758053,210.17,210.16,33.30000001]
[1759285497439,26.278053,210.17,210.16,33.30000001]
[1759285498635,26.278053,210.17,210.13,0.2]
[1759285498916,27.79384988,210.17,210.13,0.2]
[1759285500044,25.558053,210.17,210.16,37.1]
[1759285500249,4.758053,210.17,210.16,70.4]
[1759285500428,25.558053,210.17,210.16,70.4]
[1759285500747,26.278053,210.17,210.16,70.4]
[1759285501124,4.758053,210.17,210.16,70.4]
[1759285501853,5.478053,210.17,210.16,70.4]
[1759285502222,4.758053,210.17,210.16,70.4]
[1759285502719,3.09164881,210.23,210.16,71.03]
[1759285503170,11.89286903,210.21,210.16,71.03]
[1759285503350,12.61286903,210.21,210.16,71.03]
[1759285504125,17.37001664,210.21,210.16,71.03]
[1759285504341,0.72,210.2,210.16,71.03]
[1759285505142,4.75644279,210.25,210.17,14.22559401]
[1759285505340,4.75644279,210.25,210.18,0.63]
[1759285505546,16.64704921,210.25,210.18,0.63]
[1759285506647,0.72,210.24,210.18,0.63]
[1759285507041,0.72,210.24,210.19,33.3]
[1759285507226,0.72,210.24,210.19,33.93]
[1759285507426,16.64704921,210.25,210.2,0.63]
[1759285507427,4.75644279,210.25,210.2,0.63]
[1759285508167,16.64704921,210.25,210.21,0.63]
[1759285508353,11.89060642,210.25,210.21,0.63]
[1759285510343,12.61060642,210.25,210.2,0.63]
[1759285510546,12.61060642,210.25,210.19,33.3]
[1759285510547,0.72,210.24,210.19,33.3]
[1759285510851,0.72,210.23,210.2,33.3]
[1759285511060,0.72,210.22,210.2,33.3]
[1759285511233,2.37164881,210.24,210.2,33.3]
[1759285511234,0.72,210.21,210.2,33.3]
[1759285511635,5.47714761,210.21,210.2,33.3]
[1759285513546,17.37001664,210.21,210.2,33.3]
[1759285514247,19.74166545,210.21,210.16,37.1]
[1759285514565,20.8,210.18,210.16,37.1]
[1759285514858,0.72,210.17,210.16,37.1]
[1759285515463,5.478053,210.17,210.16,70.4]
[1759285517242,25.558053,210.17,210.16,70.4]
[1759285517446,26.278053,210.17,210.16,70.4]
[1759285518363,26.278053,210.17,210.16,37.1]
[1759285518540,26.278053,210.17,210.16,70.4]
[1759285519357,26.278053,210.17,210.16,37.1]
[1759285519564,26.278053,210.17,210.16,70.4]
[1759285519763,40.54483432,210.17,210.16,37.1]
[1759285519945,19.74483432,210.17,210.14,0.2]
[1759285520147,2.37164881,210.15,210.14,0.2]
[1759285520673,17.37318551,210.17,210.14,0.2]
[1759285520674,0.69,210.16,210.14,0.2]
[1759285521033,0.69,210.16,210.15,33.3]
[1759285521235,5.4482794,210.16,210.15,33.3]
[1759285521769,7.81992821,210.16,210.15,33.3]
[1759285521965,5.4482794,210.16,210.15,33.3]
[1759285524545,16.65318551,210.17,210.15,33.3]
[1759285524852,19.70483432,210.17,210.15,33.3]
[1759285525073,0.68,210.16,210.15,33.3]
[1759285525442,19.02483432,210.17,210.15,33.3]
[1759285525646,19.70483432,210.17,210.15,33.3]
[1759285527074,5.4382794,210.16,210.15,33.3]
[1759285527373,4.7582794,210.16,210.15,33.3]
[1759285529872,16.65318551,210.17,210.15,70.4]
[1759285530072,16.65318551,210.17,210.15,71.03]
[1759285531065,16.65318551,210.17,210.16,0.63]
[1759285531462,11.89385897,210.2,210.16,0.63]
[1759285531866,11.89385897,210.2,210.17,0.63]
[1759285532074,11.89385897,210.2,210.18,33.32]
[1759285533585,12.57385897,210.2,210.18,33.32]
[1759285534464,4.75714761,210.21,210.19,0.63]
[1759285534862,16.65001664,210.21,210.18,33.32]
[1759285535284,11.89286903,210.21,210.18,33.32]
[1759285539475,12.57286903,210.21,210.18,33.32]
[1759285541784,17.33001664,210.21,210.18,33.32]
[1759285541987,16.65001664,210.21,210.15,116.2]
[1759285542283,0.68,210.2,210.16,33.3]
[1759285542489,2.37164881,210.2,210.16,33.3]
[1759285542788,0.68,210.19,210.16,33.3]
[1759285543281,17.33001664,210.21,210.16,33.93]
[1759285543490,0.68,210.2,210.16,33.93]
[1759285543986,4.75760026,210.19,210.16,33.93]
[1759285544174,16.65160092,210.19,210.16,33.93]
[1759285544893,16.65160092,210.19,210.16,33.3]
[1759285545188,16.65160092,210.19,210.16,33.93]
[1759285546383,11.89400066,210.19,210.16,33.93]
[1759285548790,4.75737392,210.2,210.17,0.63]
[1759285548967,4.75737392,210.2,210.18,33.3]
[1759285549285,5.43737392,210.2,210.18,33.3]
[1759285550092,4.75737392,210.2,210.18,33.3]
[1759285550400,4.75714761,210.21,210.18,33.3]
[1759285550571,17.33001664,210.21,210.18,33.3]
[1759285551588,12.57286903,210.21,210.18,33.3]
[1759285551788,0.68,210.2,210.18,33.3]
[1759285552799,11.89286903,210.21,210.18,33.3]
[1759285553091,12.57286903,210.21,210.18,33.3]
[1759285554396,17.33001664,210.21,210.18,33.3]
[1759285556474,5.018738,210.18,210.16,79.73]
[1759285557594,9.77656462,210.18,210.17,33.3]
[1759285560598,9.77656462,210.18,210.17,33.93]
[1759285560800,9.77656462,210.18,210.17,33.3]
[1759285561611,5.018738,210.18,210.17,33.3]
[1759285561783,5.018738,210.18,210.17,33.93]
[1759285561985,9.77656462,210.18,210.17,33.3]
[1759285563705,10.43656462,210.18,210.17,33.3]
[1759285566505,10.43656462,210.18,210.16,79.1]
[1759285566710,10.43656462,210.18,210.17,33.3]
[1759285569192,22.33113118,210.18,210.15,37.1]
[1759285569386,0.66,210.17,210.16,33.3]
[1759285569717,22.33113118,210.18,210.16,33.3]
[1759285570691,5.418053,210.17,210.16,33.3]
[1759285571702,16.91330456,210.18,210.16,33.93]
[1759285571703,9.77657444,210.18,210.16,33.93]
[1759285571899,5.018738,210.18,210.17,0.63]
[1759285573234,5.018738,210.18,210.17,14.22559401]
[1759285574526,5.018738,210.18,210.17,18.98364701]
[1759285578438,5.018738,210.18,210.17,52.26364701]
[1759285583613,5.018738,210.18,210.17,131.36364701]
[1759285585768,5.018738,210.18,210.17,130.73364701]
[1759285586915,5.018738,210.18,210.17,131.36364701]
[1759285587833,5.018738,210.18,210.17,130.73364701]
[1759285588422,5.018738,210.18,210.17,125.97559401]
[1759285589118,10.43656462,210.18,210.15,37.1]
[1759285589319,0.66,210.17,210.16,33.28]
[1759285590037,5.418053,210.17,210.16,33.28]
[1759285590620,5.418053,210.17,210.15,37.1]
[1759285590948,0.66,210.16,210.15,37.1]
[1759285591249,0.66,210.16,210.15,70.38]
[1759285592222,5.4182794,210.16,210.15,70.38]
[1759285613565,5.018738,210.15,210.14,0.2]
[1759285613866,5.018738,210.15,210.14,37.3]
[1759285614263,10.44724382,210.15,210.14,37.3]
[1759285614935,10.44724382,210.15,210.14,70.58]
[1759285616046,9.77724382,210.15,210.14,70.58]
[1759285616254,10.44724382,210.15,210.14,70.58]
[1759285616865,9.77724382,210.15,210.14,70.58]
[1759285619362,10.44724382,210.15,210.14,37.3]
[1759285619549,10.44724382,210.15,210.14,70.58]
[1759285619751,10.44724382,210.15,210.14,37.1]